bitfinex/quotes_ETHUSD_20241122
["timestamp","ask_amount","ask_price","bid_price","bid_amount"]
[1732296655398,6.04623,3307.9,3307.6,0.2365]
[1732296655598,3.02308,3307.9,3307.6,0.2365]
[1732296655798,3.02316,3307.8,3307.6,0.2365]
[1732296656001,3.02334,3307.6,3306.4,0.2365]
[1732296656216,5.798786,3307.7,3306.4,0.2365]
[1732296656437,3.02353,3307.4,3306.4,0.2365]
[1732296656619,6.04713,3307.4,3306.4,0.5379]
[1732296656803,3.02375,3307.2,3306.4,0.5379]
[1732296657002,3.0238,3307.1,3306.4,0.2365]
[1732296657199,3.570166,3307.3,3306.4,0.2365]
[1732296657200,3.02398,3306.9,3306.4,0.2365]
[1732296657413,0.302398,3306.8,3306.4,0.2365]
[1732296657600,3.02381,3307.1,3306.4,0.2365]
[1732296658041,3.570166,3307.3,3306.4,0.2365]
[1732296658344,3.02388,3307.1,3306.4,0.2365]
[1732296658553,3.02388,3307.0,3306.4,0.2365]
[1732296659343,0.3570166,3307.2,3306.4,0.2365]
[1732296659720,3.02375,3307.2,3306.4,0.2365]
[1732296660409,3.02379,3307.2,3306.4,0.2365]
[1732296661467,3.02388,3307.1,3306.4,0.2365]
[1732296661667,3.02392,3307.0,3306.4,0.2365]
[1732296661818,0.302392,3306.9,3306.4,0.2365]
[1732296662219,3.0237,3307.2,3306.4,0.2365]
[1732296662421,3.0245,3306.4,3305.4,0.2365]
[1732296662821,3.02467,3306.2,3305.4,0.2365]
[1732296663020,3.629587,3306.2,3305.4,0.2365]
[1732296663308,2.775466,3306.0,3305.4,0.2365]
[1732296663513,3.629557,3306.2,3305.4,0.2365]
[1732296664042,3.02471,3306.1,3305.4,0.2365]
[1732296664350,3.629557,3306.2,3305.4,0.2365]
[1732296664527,3.4683157,3306.1,3305.4,0.2365]
[1732296664721,3.0248,3306.0,3305.4,0.2365]
[1732296665240,3.581966,3305.7,3304.7,0.2365]
[1732296665420,3.02526,3305.5,3304.7,0.2365]
[1732296665750,3.02544,3305.3,3304.7,0.2365]
[1732296666110,3.02556,3305.2,3304.7,0.2365]
[1732296666319,0.302556,3305.1,3304.7,0.2365]
[1732296666556,3.02543,3305.4,3304.7,0.2365]
[1732296666869,3.0254,3305.4,3304.7,0.2365]
[1732296667035,3.3581966,3305.6,3304.7,0.2365]
[1732296667250,2.775466,3305.3,3304.4,0.2365]
[1732296667428,0.69401626,3305.5,3304.4,0.2365]
[1732296667626,3.02496,3305.9,3304.5,0.36419674]
[1732296667627,2.775466,3305.9,3304.5,0.36419674]
[1732296667936,5.800106,3306.2,3304.6,0.2365]
[1732296668140,0.5800106,3306.1,3304.6,0.2365]
[1732296668367,3.6047206,3306.1,3304.6,0.2365]
[1732296668579,0.5800106,3306.1,3304.6,0.2365]
[1732296668773,3.02504,3305.8,3304.6,0.2365]
[1732296668928,3.02527,3305.5,3304.6,0.2365]
[1732296669269,2.775466,3305.6,3304.6,0.2365]
[1732296669270,0.302527,3305.4,3304.6,0.2365]
[1732296669438,3.327947,3305.4,3304.6,0.2365]
[1732296669644,0.302527,3305.4,3304.6,0.2365]
[1732296669965,5.800926,3305.3,3304.6,0.2365]
[1732296670173,2.775466,3305.3,3304.6,0.2365]
[1732296670465,5.800906,3305.3,3304.6,0.2365]
[1732296670830,2.775466,3305.3,3304.6,0.2365]
[1732296671031,3.83618,3305.7,3304.6,0.2365]
[1732296671032,2.775466,3305.6,3304.6,0.2365]
[1732296671256,3.159084,3305.6,3304.6,0.2365]
[1732296671439,7.4344206,3306.1,3304.6,0.2365]
[1732296671643,2.775466,3305.9,3304.6,0.2365]
[1732296671864,2.775466,3305.6,3304.6,0.2365]
[1732296672068,3.02568,3305.1,3304.6,0.2365]
[1732296672798,5.800976,3305.3,3304.6,0.2365]
[1732296672925,2.775466,3305.6,3304.6,0.2365]
[1732296673131,6.81292,3306.0,3304.6,0.2365]
[1732296673330,1.03929306,3305.9,3304.6,0.2365]
[1732296673574,3.02506,3305.8,3304.6,0.2365]
[1732296674144,2.775466,3305.6,3304.6,0.2365]
[1732296674692,3.02544,3305.3,3304.6,0.2365]
[1732296674982,3.02574,3305.0,3304.6,0.2365]
[1732296675184,3.02574,3305.0,3304.3,0.242689]
[1732296675185,0.302574,3304.9,3304.3,0.242689]
[1732296676347,3.02556,3305.2,3304.3,0.242689]
[1732296676545,3.605566,3305.6,3304.3,0.242689]
[1732296676982,2.775466,3305.6,3304.3,0.242689]
[1732296677351,3.02498,3305.8,3304.3,0.242689]
[1732296677662,0.987999,3305.7,3304.3,0.242689]
[1732296677859,6.630216,3306.2,3304.4,0.26676137]
[1732296678062,2.775466,3305.9,3304.4,0.2365]
[1732296678283,3.3554926,3305.9,3304.5,0.2365]
[1732296678447,6.3804026,3305.9,3304.5,0.2365]
[1732296678651,5.800376,3305.9,3304.5,0.2365]
[1732296678972,3.85476,3306.2,3304.6,0.03025726]
[1732296678973,2.775466,3306.2,3304.6,0.03025726]
[1732296679175,2.775466,3306.2,3304.7,0.2365]
[1732296679351,0.2775466,3306.1,3304.7,0.2365]
[1732296680258,5.800376,3305.9,3304.7,0.2365]
[1732296680587,2.775466,3305.6,3304.7,0.2365]
[1732296680760,2.775466,3305.9,3304.8,0.2365]
[1732296681588,3.077931,3306.2,3304.9,0.03025606]
[1732296681802,2.775466,3306.5,3305.0,0.2365]
[1732296681953,2.775466,3306.5,3305.1,0.26675232]
[1732296682153,2.775466,3306.8,3305.2,0.2365]
[1732296682391,0.2775466,3306.7,3305.4,0.2365]
[1732296682592,2.775466,3306.5,3305.4,0.2365]
[1732296683216,5.799826,3306.5,3305.4,0.2365]
[1732296683494,2.775466,3305.9,3305.4,0.2365]
[1732296683989,5.800356,3305.9,3305.4,0.2365]
[1732296684200,2.775466,3305.6,3305.1,0.2365]
[1732296684566,2.775466,3305.3,3304.4,0.2365]
[1732296684753,0.36051156,3305.6,3304.4,0.2365]
[1732296684956,0.55,3305.8,3304.4,0.2365]
[1732296685352,3.02509,3305.7,3304.4,0.2365]
[1732296685556,0.55,3305.8,3304.4,0.2365]
[1732296685557,3.57498,3305.8,3304.4,0.2365]
[1732296685763,0.55,3305.6,3304.4,0.2365]
[1732296686181,0.55,3305.8,3304.4,0.2365]
[1732296686489,3.57976063,3305.9,3304.4,0.2365]
[1732296686652,3.57976063,3305.9,3304.5,0.2365]
[1732296686653,4.24020869,3305.9,3304.5,0.2365]
[1732296686976,4.24020869,3305.9,3304.5,0.26675712]
[1732296686977,0.66044806,3305.9,3304.5,0.26675712]
[1732296687182,0.55,3306.0,3304.5,0.26675712]
[1732296687491,3.02421,3306.7,3304.5,0.26675712]
[1732296687492,6.60394063,3306.7,3304.8,0.2365]
[1732296687653,3.02443,3306.4,3305.0,3.0]
[1732296687857,3.02438,3306.5,3305.1,0.2365]
[1732296688169,0.43175447,3306.5,3305.1,0.2365]
[1732296690906,0.43175447,3306.5,3305.2,0.2365]
[1732296691401,3.02391,3307.0,3305.3,0.26675184]
[1732296691402,0.55,3307.0,3305.3,0.26675184]
[1732296691567,3.02403,3306.9,3305.3,0.2365]
[1732296692103,0.55,3307.0,3305.3,0.2365]
[1732296692312,1.01536106,3306.9,3305.3,0.2365]
[1732296692475,1.01536106,3306.9,3305.5,0.3014]
[1732296692680,3.57976063,3307.1,3305.8,0.2365]
[1732296693976,0.7858,3307.5,3306.0,0.2365]
[1732296693977,3.57976063,3307.5,3306.0,0.2365]
[1732296694164,0.35797606,3307.4,3306.1,0.26674276]
[1732296694604,3.02325,3307.7,3306.1,0.2365]
[1732296694896,3.57976063,3307.5,3306.1,0.2365]
[1732296695104,3.02371,3307.2,3306.1,0.2365]
[1732296695317,3.88213163,3307.1,3306.1,0.2365]
[1732296695468,3.57976063,3307.1,3306.1,0.2365]
[1732296695661,0.55,3307.3,3306.1,0.2365]
[1732296695867,3.02358,3307.4,3306.1,0.2365]
[1732296695868,0.55,3307.4,3306.1,0.2365]
[1732296696176,0.55,3307.2,3306.1,0.2365]
[1732296696363,0.55,3307.4,3306.1,0.2365]
[1732296696768,3.02362,3307.3,3306.1,0.2365]
[1732296697166,0.55,3307.2,3306.1,0.2365]
[1732296697395,3.381212,3307.1,3306.1,0.2365]
[1732296697594,3.381162,3307.1,3306.1,0.2365]
[1732296697805,0.357362,3307.1,3306.1,0.2365]
[1732296698025,3.02392,3307.0,3306.1,0.2365]
[1732296698315,3.93712263,3307.1,3306.1,0.2365]
[1732296698608,0.44871226,3307.0,3306.1,0.2365]
[1732296698967,0.55,3307.5,3306.1,0.2365]
[1732296699167,3.57344,3307.5,3306.1,0.2365]
[1732296699481,3.0,3307.8,3306.1,0.26674573]
[1732296699703,0.7773,3308.4,3306.4,3.0]
[1732296700007,5.08585828,3309.1,3306.9,0.2365]
[1732296700215,4.35446063,3309.1,3307.1,0.2365]
[1732296700402,4.35446063,3309.1,3307.5,3.0]
[1732296700403,0.52432149,3309.0,3307.5,3.0]
[1732296700569,0.52432149,3309.0,3307.7,0.2365]
[1732296700570,3.54644149,3309.0,3307.7,0.2365]
[1732296701113,0.52432149,3309.0,3307.7,0.2365]
[1732296701412,3.02231,3308.8,3307.7,0.2365]
[1732296701616,3.02237,3308.7,3307.7,0.2365]
[1732296701773,6.60213063,3308.7,3307.7,0.2365]
[1732296701974,3.57242,3308.6,3307.7,0.2365]
[1732296702297,0.71521806,3308.5,3307.7,0.2365]
[1732296703087,0.55,3308.8,3307.7,0.2365]
[1732296703401,3.57976063,3309.5,3307.7,0.2365]
[1732296703768,3.57976063,3309.5,3307.8,0.03022624]
[1732296703964,0.35797606,3309.4,3307.9,0.2365]
[1732296704166,3.57976063,3309.1,3307.9,0.2365]
[1732296704367,4.33276063,3309.9,3308.1,0.2365]
[1732296704594,0.39316159,3309.8,3308.3,0.2365]
[1732296704802,0.47259222,3309.7,3308.5,0.2365]
[1732296707271,3.57976063,3309.5,3308.5,0.2365]
[1732296708908,3.0,3310.2,3308.5,0.2365]
[1732296709109,3.0,3310.2,3308.7,0.2365]
[1732296709272,3.57976063,3310.7,3308.7,0.2365]
[1732296709474,0.35872606,3310.5,3308.7,0.26671511]
[1732296710283,0.35872606,3310.5,3308.8,0.03021253]
[1732296710523,0.35872606,3310.5,3308.8,0.26671253]
[1732296713574,0.35872606,3310.5,3308.8,0.2365]
[1732296714029,3.02088,3310.3,3308.8,0.2365]
[1732296714311,3.57976063,3309.9,3308.8,0.2365]
[1732296714613,3.57107,3310.1,3308.8,0.2365]
[1732296714815,3.02123,3310.0,3308.8,0.2365]
[1732296715379,6.60100063,3309.9,3308.8,0.2365]
[1732296715680,0.66010006,3309.8,3308.8,0.2365]
[1732296715898,3.02142,3309.7,3308.8,0.2365]
[1732296716307,6.04292,3309.7,3308.8,0.2365]
[1732296716490,3.02142,3309.7,3308.8,0.2365]
[1732296717325,0.66010006,3309.8,3308.8,0.2365]
[1732296717527,0.55,3310.1,3308.8,0.2365]
[1732296717727,3.57976063,3309.9,3308.8,0.2365]
[1732296718191,3.02151,3309.6,3308.8,0.2365]
[1732296718388,3.02187,3309.3,3308.8,0.2365]
[1732296718590,0.302187,3309.2,3308.8,0.2365]
[1732296718829,3.02198,3309.1,3308.8,0.2365]
[1732296719032,3.0219,3309.2,3308.8,0.2365]
[1732296719200,0.30219,3309.1,3308.8,0.2365]
[1732296719403,3.57976063,3309.1,3307.6,0.2365]
[1732296719621,0.55,3309.0,3307.6,0.2365]
[1732296719789,3.0,3309.2,3307.6,0.2365]
[1732296720227,3.02179,3309.3,3307.6,0.2365]
[1732296720402,3.02203,3309.1,3307.6,0.2365]
[1732296720909,3.02236,3308.7,3307.6,0.2365]
[1732296721105,0.302236,3308.6,3307.6,0.2365]
[1732296721338,0.55,3308.7,3307.6,0.2365]
[1732296721637,3.0223,3308.8,3307.6,0.2365]
[1732296721995,3.02251,3308.5,3307.6,0.2365]
[1732296722294,0.302251,3308.5,3307.6,0.2365]
[1732296722491,3.324841,3308.5,3307.6,0.2365]
[1732296722725,3.02314,3307.9,3307.6,0.2365]
[1732296722904,0.55,3308.0,3307.6,0.2365]
[1732296723341,6.60248063,3308.3,3307.6,0.2365]
[1732296723510,0.66024806,3308.2,3307.6,0.2365]
[1732296723996,3.02272,3308.3,3307.6,0.2365]
[1732296724397,3.55,3308.5,3307.6,0.2365]
[1732296724604,3.02277,3308.3,3307.6,0.2365]
[1732296724841,3.02281,3308.2,3307.6,0.2365]
[1732296724997,0.604558,3308.1,3307.6,0.2365]
[1732296725198,3.02281,3308.2,3307.6,0.2365]
[1732296725199,3.02305,3308.0,3307.6,0.2365]
[1732296725731,3.02262,3308.4,3307.6,0.2365]
[1732296725933,0.357248,3308.4,3307.6,0.2365]
[1732296726151,3.02289,3308.1,3307.6,0.2365]
[1732296726312,3.02252,3308.5,3307.6,0.2365]
[1732296726932,6.60212063,3308.7,3307.6,0.2365]
[1732296727110,6.02224,3308.8,3307.6,0.2365]
[1732296727309,3.3,3309.0,3307.6,0.2365]
[1732296727642,3.3,3309.0,3307.8,0.2365]
[1732296727643,0.3,3309.0,3307.8,0.2365]
[1732296727843,0.3,3309.0,3307.9,0.2365]
[1732296728007,3.02237,3308.7,3307.9,0.2365]
[1732296728552,3.57976063,3308.3,3307.9,0.2365]
[1732296728756,4.35496063,3308.7,3307.9,0.2365]
[1732296728915,3.0227,3308.3,3307.9,0.2365]
[1732296729115,0.30227,3308.2,3307.9,0.2365]
[1732296729845,3.02267,3308.4,3307.9,0.2365]
[1732296730509,3.02247,3308.6,3307.9,0.2365]
[1732296730913,3.02226,3308.8,3307.9,0.2365]
[1732296731158,0.602226,3308.8,3307.9,0.2365]
[1732296732415,3.624526,3308.8,3307.9,0.2365]
[1732296732639,3.02244,3308.6,3307.9,0.2365]
[1732296732814,3.624526,3308.8,3307.9,0.2365]
[1732296733024,3.0224,3308.7,3307.9,0.2365]
[1732296733255,0.6646926,3308.6,3307.9,0.2365]
[1732296733452,3.624526,3308.8,3307.9,0.2365]
[1732296733752,0.602226,3308.8,3307.9,0.2365]
[1732296735237,3.0225,3308.6,3307.9,0.2365]
[1732296735537,6.60210063,3308.7,3307.9,0.2365]
[1732296736354,3.02229,3308.8,3307.9,0.2365]
[1732296736681,0.604447,3308.7,3307.9,0.2365]
[1732296736969,3.02215,3308.9,3307.9,0.2365]
[1732296737354,3.02235,3308.7,3307.9,0.2365]
[1732296737559,3.02215,3308.9,3307.9,0.2365]
[1732296737878,3.02251,3308.6,3307.9,0.2365]
[1732296738062,3.02279,3308.2,3307.9,0.2365]
[1732296738249,3.02279,3308.2,3306.8,0.2365]
[1732296738447,3.02279,3308.2,3307.0,3.0]
[1732296738769,3.91992457,3308.2,3307.2,0.2365]
[1732296738981,0.89713457,3308.2,3307.2,0.2365]
[1732296739190,3.02273,3308.3,3307.2,0.2365]
[1732296739335,3.02281,3308.2,3307.2,0.2365]
[1732296739537,3.02304,3308.0,3307.2,0.2365]
[1732296739870,3.02281,3308.2,3307.2,0.2365]
[1732296740077,0.7566,3308.6,3306.5,0.03023471]
[1732296740078,3.0,3308.5,3307.3,0.55]
[1732296740371,3.0,3308.5,3307.4,0.2365]
[1732296740572,3.02245,3308.6,3307.4,0.2365]
[1732296740742,0.66022106,3308.5,3307.4,0.2365]
[1732296740945,0.66022106,3308.5,3307.6,0.2365]
[1732296743364,3.68279106,3308.5,3307.6,0.2365]
[1732296743976,0.66022106,3308.5,3307.6,0.2365]
[1732296744288,0.36827211,3308.4,3307.6,0.2365]
[1732296744658,3.68276106,3308.5,3307.6,0.2365]
[1732296746355,0.66022106,3308.5,3307.6,0.2365]
[1732296747594,3.68275106,3308.5,3307.6,0.2365]
[1732296747803,0.66022106,3308.5,3307.6,0.2365]
[1732296748588,3.68278106,3308.5,3307.6,0.2365]
[1732296748795,3.57976063,3308.3,3307.6,0.2365]
[1732296749103,0.67052211,3308.4,3307.6,0.2365]
[1732296749104,3.02269,3308.4,3307.6,0.2365]
[1732296749296,4.30886422,3308.7,3307.6,0.2365]
[1732296749858,3.02289,3308.1,3307.6,0.2365]
[1732296750058,0.302289,3308.0,3307.6,0.2365]
[1732296750294,3.325319,3308.0,3307.6,0.2365]
[1732296751576,3.02324,3307.8,3307.6,0.2365]
[1732296751772,0.302289,3308.0,3307.6,0.2365]
[1732296751981,3.72821506,3308.3,3307.6,0.2365]
[1732296752188,6.04552,3308.3,3307.6,0.2365]
[1732296752365,3.02275,3308.3,3307.6,0.2365]
[1732296752873,3.02297,3308.1,3307.6,0.2365]
[1732296753076,3.325317,3308.0,3307.6,0.2365]
[1732296753391,0.302297,3308.0,3307.6,0.2365]
[1732296754301,3.02274,3308.3,3307.6,0.2365]
[1732296754507,5.79795295,3308.4,3307.6,0.2365]
[1732296754710,3.02275,3308.3,3307.6,0.2365]
[1732296755002,5.79790295,3308.4,3307.6,0.2365]
[1732296755191,3.02279,3308.2,3307.6,0.2365]
[1732296755387,0.88204729,3308.3,3307.6,0.2365]
[1732296756396,3.90479729,3308.3,3307.6,0.2365]
[1732296756696,2.77528295,3308.0,3307.6,0.2365]
[1732296756895,5.79830295,3308.0,3307.6,0.2365]
[1732296757081,3.02306,3307.9,3307.6,0.2365]
[1732296757709,3.02355,3307.4,3305.8,0.3014]
[1732296757917,5.79883295,3307.4,3306.2,0.2365]
[1732296758086,5.79883295,3307.4,3306.5,0.3014]
[1732296758472,3.02334,3307.6,3306.5,0.3014]
[1732296758809,0.302334,3307.5,3306.6,0.2365]
[1732296759186,3.325774,3307.5,3306.6,0.2365]
[1732296759406,6.349274,3307.5,3306.6,0.2365]
[1732296759708,3.325774,3307.5,3306.6,0.2365]
[1732296760208,3.02362,3307.3,3306.6,0.2365]
[1732296760718,3.02373,3307.2,3306.6,0.2365]
[1732296761071,6.13140035,3307.4,3306.6,0.2365]
[1732296761274,3.02362,3307.3,3306.6,0.2365]
[1732296761511,5.79917295,3307.0,3306.6,0.2365]
[1732296761720,2.77528295,3307.0,3306.6,0.2365]
[1732296763176,3.41865639,3307.3,3306.6,0.2365]
[1732296763488,0.3325774,3307.4,3306.6,0.2365]
[1732296763683,3.3561574,3307.4,3306.6,0.2365]
[1732296763900,0.3325774,3307.4,3306.6,0.2365]
[1732296764072,2.77528295,3307.6,3306.6,0.2365]
[1732296764488,5.79867295,3307.6,3306.6,0.2365]
[1732296764801,2.77528295,3307.3,3306.6,0.2365]
[1732296765489,3.0,3307.9,3306.6,0.2365]
[1732296765490,2.77528295,3307.6,3306.6,0.2365]
[1732296766503,2.77528295,3307.6,3305.8,0.33164353]
[1732296766504,0.37794,3307.8,3306.8,0.2365]
[1732296766702,2.77528295,3307.9,3306.8,0.2365]
[1732296768901,5.79810295,3308.2,3306.8,0.26673749]
[1732296769225,2.77528295,3308.2,3307.0,0.2365]
[1732296769388,3.43154324,3308.2,3307.0,0.2365]
[1732296769905,3.02288,3308.1,3307.0,0.2365]
[1732296770421,2.77528295,3307.6,3307.0,0.2365]
[1732296770987,5.79863295,3307.6,3307.0,0.2365]
[1732296771188,8.82205295,3307.6,3307.0,0.2365]
[1732296771389,5.79863295,3307.6,3307.0,0.2365]
[1732296771605,0.5798633,3307.5,3307.0,0.2365]
[1732296772027,3.6032933,3307.5,3307.0,0.2365]
[1732296772441,0.5798633,3307.5,3307.0,0.2365]
[1732296772635,2.77528295,3307.6,3307.0,0.2365]
[1732296772993,5.79835295,3307.9,3307.0,0.2365]
[1732296773198,2.77528295,3307.9,3307.0,0.2365]
[1732296773493,5.79835295,3307.9,3307.0,0.2365]
[1732296773800,3.02326,3307.7,3307.0,0.2365]
[1732296773990,6.10096895,3307.6,3307.0,0.2365]
[1732296774817,3.07760895,3307.6,3307.0,0.2365]
[1732296775017,3.37900895,3307.6,3307.0,0.2365]
[1732296775228,6.40241895,3307.6,3307.0,0.2365]
[1732296775610,3.37900895,3307.6,3307.0,0.2365]
[1732296775811,0.6402319,3307.5,3307.0,0.2365]
[1732296777288,3.6636619,3307.5,3307.0,0.2365]
[1732296777526,2.77528295,3307.3,3307.0,0.2365]
[1732296778289,0.6402319,3307.5,3307.0,0.2365]
[1732296778524,3.02354,3307.4,3307.0,0.2365]
[1732296779093,3.02373,3307.2,3306.0,0.55]
[1732296779305,0.5799013,3307.1,3306.1,0.2365]
[1732296779509,0.5799013,3307.1,3306.1,3.0]
[1732296779814,0.5799013,3307.1,3306.2,0.2365]
[1732296780407,6.10005295,3307.6,3306.2,0.2365]
[1732296780752,6.10005295,3307.6,3306.3,0.2365]
[1732296780908,3.07668295,3307.6,3306.4,0.55]
[1732296781109,4.06764725,3307.6,3306.5,0.2365]
[1732296781415,2.77528295,3307.3,3306.5,0.2365]
[1732296782362,2.77528295,3306.7,3306.5,0.2365]
[1732296782513,2.77528295,3307.0,3306.5,0.2365]
[1732296782708,0.302354,3307.3,3306.5,0.2365]
[1732296782956,1.01355504,3307.6,3306.5,0.2365]
[1732296783248,0.3014,3307.6,3306.5,0.2365]
[1732296784011,2.77528295,3307.4,3306.5,0.2365]
[1732296784211,3.08295124,3307.4,3306.5,0.2365]
[1732296784509,2.77528295,3307.4,3306.5,0.2365]
[1732296784739,2.77528295,3307.1,3306.5,0.2365]
[1732296785566,3.32479,3307.6,3306.5,0.2365]
[1732296785567,2.77528295,3307.4,3306.5,0.2365]
[1732296785918,0.3014,3307.6,3306.6,0.2365]
[1732296786441,3.02266,3308.4,3306.9,0.2365]
[1732296786754,3.02266,3308.4,3306.8,0.55]
[1732296786755,3.02266,3308.4,3307.0,0.2365]
[1732296786756,2.77528295,3307.9,3307.0,0.2365]
[1732296786959,0.618221,3307.8,3307.1,0.3014]
[1732296787161,1.19805329,3307.8,3307.2,0.2365]
[1732296787326,0.618221,3307.8,3307.2,0.2365]
[1732296787522,0.618221,3307.8,3307.2,0.3014]
[1732296787727,0.27752829,3308.4,3307.4,0.2365]
[1732296788042,1.207947,3308.1,3307.4,0.2365]
[1732296789876,0.27752829,3308.4,3307.4,0.2365]
[1732296790027,0.27752829,3308.4,3307.5,0.3014]
[1732296790232,2.77528295,3308.5,3307.6,0.2365]
[1732296791349,2.77528295,3308.2,3307.6,0.2365]
[1732296791760,2.77528295,3308.5,3307.6,0.2365]
[1732296793246,3.02265,3308.4,3307.6,0.2365]
[1732296793460,0.5797933,3308.3,3307.6,0.2365]
[1732296793766,5.79808295,3308.2,3307.6,0.2365]
[1732296794274,3.53058295,3307.9,3307.2,0.2365]
[1732296794579,3.02322,3307.8,3307.2,0.2365]
[1732296794874,2.77528295,3307.6,3307.2,0.2365]
[1732296795249,0.6553603,3307.9,3307.2,0.2365]
[1732296795576,2.77528295,3308.2,3307.2,0.2365]
[1732296796136,5.79809295,3308.2,3307.2,0.2365]
[1732296796331,2.77528295,3308.2,3307.2,0.2365]
[1732296796575,2.77528295,3307.9,3307.2,0.2365]
[1732296796993,3.15308595,3308.2,3307.2,0.2365]
[1732296797649,2.77528295,3308.5,3307.4,0.2365]
[1732296798687,3.02262,3308.4,3307.4,0.2365]
[1732296798989,5.79817295,3308.1,3307.4,0.2365]
[1732296799169,0.65486729,3308.0,3307.4,0.2365]
[1732296800856,0.65486729,3308.0,3307.5,0.3014]
[1732296802796,0.65486729,3308.0,3307.4,0.2365]
[1732296803117,3.02321,3307.8,3307.4,0.2365]
[1732296803592,6.04643,3307.8,3306.7,0.3014]
[1732296803764,0.7736,3307.6,3306.7,0.3014]
[1732296805107,5.79894295,3307.3,3306.6,0.2365]
[1732296805395,0.5798943,3307.2,3306.6,0.2365]
[1732296805553,0.5798943,3307.2,3306.2,0.3014]
[1732296805753,0.5798943,3307.2,3306.1,0.2365]
[1732296806002,2.77528295,3306.9,3306.1,0.2365]
[1732296806171,0.7846,3307.1,3306.1,0.2365]
[1732296806364,3.80842,3307.1,3306.1,0.2365]
[1732296806558,6.8323,3307.1,3306.1,0.2365]
[1732296806868,6.8323,3307.1,3305.4,0.5379]
[1732296806869,3.02428,3306.6,3305.4,0.5379]
[1732296807188,2.77528295,3306.6,3305.4,0.5379]
[1732296807354,0.8217,3306.5,3305.4,0.5379]
[1732296807556,0.35969829,3306.4,3305.4,0.5379]
[1732296807895,3.38421829,3306.4,3305.4,0.5379]
[1732296808200,3.38412829,3306.4,3305.4,0.5379]
[1732296808500,3.02456,3306.3,3305.4,0.5379]
[1732296808655,0.35969829,3306.4,3305.4,0.5379]
[1732296808860,3.024,3306.9,3305.5,0.26675175]
[1732296809208,3.02408,3306.8,3305.5,0.26674938]
[1732296809505,3.02408,3306.8,3305.5,0.2365]
[1732296809684,0.302408,3306.7,3305.5,0.2365]
[1732296809998,0.302408,3306.7,3305.5,0.26674938]
[1732296810300,3.02386,3307.1,3305.5,0.26674938]
[1732296810501,6.59891295,3307.2,3305.5,0.26674938]
[1732296810708,3.02389,3307.0,3305.5,0.33164938]
[1732296810863,3.02389,3307.0,3305.6,0.2365]
[1732296811059,3.02414,3306.8,3305.6,0.2365]
[1732296811261,2.77528295,3306.9,3305.7,0.3014]
[1732296811468,5.79928295,3306.9,3305.8,0.2365]
[1732296811687,0.5799173,3306.8,3305.8,0.2365]
[1732296813080,2.77528295,3306.9,3305.8,0.2365]
[1732296813309,5.79931295,3306.9,3305.8,0.2365]
[1732296813503,3.02409,3306.8,3305.8,0.2365]
[1732296813714,3.02417,3306.7,3305.8,0.2365]
[1732296814232,3.0241,3306.8,3305.8,0.2365]
[1732296814532,0.27752829,3306.8,3305.8,0.2365]
[1732296814833,6.32576829,3306.8,3305.8,0.2365]
[1732296815135,3.02418,3306.7,3305.8,0.2365]
[1732296815428,3.30161829,3306.8,3305.8,0.2365]
[1732296815735,0.60769012,3306.7,3305.8,0.2365]
[1732296815907,0.8292,3306.6,3305.9,0.3014]
[1732296816093,3.02437,3306.5,3305.8,0.2365]
[1732296816290,0.8292,3306.6,3305.8,0.2365]
[1732296816494,0.17144184,3306.6,3305.8,0.2365]
[1732296817923,0.27752829,3306.8,3305.8,0.2365]
[1732296818095,3.30161829,3306.8,3305.8,0.2365]
[1732296818823,0.27752829,3306.8,3305.8,0.2365]
[1732296819133,3.02418,3306.7,3305.8,0.2365]
[1732296819922,3.02455,3306.3,3305.8,0.2365]
[1732296820146,0.8133,3306.3,3305.8,0.2365]
[1732296820435,3.02485,3306.0,3305.4,0.2365]
[1732296820639,0.302485,3305.9,3305.4,0.2365]
[1732296820860,0.302485,3305.9,3305.2,0.2365]
[1732296821071,3.327375,3305.9,3305.2,0.2365]
[1732296821365,3.02479,3306.1,3305.2,0.2365]
[1732296821526,5.79994295,3306.2,3305.2,0.2365]
[1732296821729,0.8133,3306.3,3305.2,0.2365]
[1732296821928,5.79995295,3306.2,3305.2,0.2365]
[1732296822156,3.02467,3306.2,3305.2,0.2365]
[1732296822470,0.302445,3306.3,3305.2,0.2365]
[1732296822637,3.326975,3306.3,3305.2,0.2365]
[1732296823159,0.302445,3306.3,3305.3,0.3014]
[1732296823491,0.3326885,3306.2,3305.2,0.2365]
[1732296825123,3.3573185,3306.2,3305.2,0.2365]
[1732296825437,0.3326885,3306.2,3305.2,0.2365]
[1732296825949,0.302445,3306.3,3305.6,0.2365]
[1732296826166,3.79562,3307.4,3305.7,0.2365]
[1732296826467,3.79562,3307.4,3306.2,0.2365]
[1732296826468,0.39530293,3307.3,3306.2,0.2365]
[1732296826669,2.77528295,3307.0,3306.2,0.2365]
[1732296826873,3.02413,3306.8,3306.2,0.2365]
[1732296827165,3.02432,3306.6,3306.2,0.2365]
[1732296827328,3.02432,3306.6,3305.1,0.2365]
[1732296827524,3.02435,3306.5,3305.3,0.2365]
[1732296827768,0.604867,3306.4,3305.3,0.2365]
[1732296827967,3.02432,3306.6,3305.4,0.3014]
[1732296828282,3.02449,3306.4,3305.4,0.3014]
[1732296828457,3.02453,3306.3,3305.4,0.3014]
[1732296828972,3.02449,3306.4,3305.4,0.3014]
[1732296828973,3.02462,3306.2,3305.4,0.3014]
[1732296829698,3.81352,3306.2,3305.4,0.3014]
[1732296830673,0.7889,3306.2,3305.4,0.3014]
[1732296830987,3.81358,3306.2,3305.3,0.2365]
[1732296831195,0.4116029,3306.1,3305.3,0.2365]
[1732296832199,3.02453,3306.3,3305.3,0.2365]
[1732296833100,3.82338,3306.5,3305.3,0.2365]